fUST/lending_fUST_20260219
["ID","MTS","AMOUNT","RATE_DAILY","PERIOD"]
[405990434,1771507862558,-549.95,0.00035068,19]
[405990435,1771507862572,-2541.15,0.00035068,19]
[405990436,1771507862583,-1962.15,0.00035068,19]
[405990437,1771507862593,-1167.62,0.00035068,2]
[405990438,1771507862603,-673.87,0.00035068,19]
[405990439,1771507862615,-626.37,0.00035068,19]
[405990440,1771507862624,-575.32,0.00035068,19]
[405990441,1771507862634,-500.0,0.00035068,19]
[405990442,1771507862646,-500.0,0.00035068,2]
[405990443,1771507862657,-50366.48,0.00035068,19]
[405990444,1771507862667,-1301.82677386,0.00035242,120]
[405990445,1771507862677,-5152.25,0.000353,14]
[405990446,1771507862686,-151.0,0.00035342,19]
[405990447,1771507862695,-500.0,0.00035342,19]
[405990448,1771507862705,-500.0,0.00035342,19]
[405990449,1771507862714,-500.0,0.00035342,19]
[405990450,1771507862723,-500.0,0.00035342,7]
[405990451,1771507862733,-542.43,0.00035342,19]
[405990452,1771507862743,-500.0,0.00035342,19]
[405990453,1771507862752,-500.0,0.00035342,19]
[405990454,1771507862761,-500.0,0.00035342,8]
[405990455,1771507862770,-500.0,0.00035342,19]
[405990456,1771507862780,-500.0,0.00035342,19]
[405990457,1771507862789,-500.0,0.00035342,19]
[405990458,1771507862804,-500.0,0.00035342,19]
[405990459,1771507862813,-1533.22,0.00035342,19]
[405990460,1771507862822,-500.0,0.00035342,19]
[405990461,1771507862831,-3997.29,0.00035342,19]
[405990462,1771507862839,-500.0,0.00035342,19]
[405990463,1771507862848,-599.06,0.00035342,19]
[405990464,1771507862858,-519.9,0.00035342,19]
[405990465,1771507862867,-558.69,0.00035342,19]
[405990466,1771507862876,-448.59715595,0.00035342,19]
[405990467,1771507862885,-500.0,0.00035342,19]
[405990468,1771507862895,-599.81,0.00035342,19]
[405990469,1771507862905,-500.0,0.00035342,19]
[405990470,1771507862913,-500.0,0.00035342,19]
[405990471,1771507862923,-1496.35,0.00035342,19]
[405990472,1771507862932,-4151.89,0.00035342,7]
[405990473,1771507862942,-852.41,0.00035342,19]
[405990474,1771507862951,-680.68,0.00035342,19]
[405990475,1771507862960,-637.44,0.00035342,19]
[405990476,1771507862970,-500.0,0.00035342,19]
[405990477,1771507862979,-3623.21,0.00035342,19]
[405990478,1771507862988,-466.9309225,0.00035342,19]
[405990479,1771507862998,-500.0,0.00035342,19]
[405990480,1771507863007,-680.95,0.00035342,19]
[405990481,1771507863016,-1050.37,0.00035342,19]
[405990482,1771507863026,-1403.29,0.00035342,19]
[405990483,1771507863035,-1552.9,0.00035342,19]
[405990484,1771507863051,-500.0,0.00035342,19]
[405990485,1771507863062,-1850.23,0.00035342,19]
[405990486,1771507863071,-500.0,0.00035342,19]
[405990487,1771507863081,-318.89227481,0.00035342,19]
[405990488,1771507863090,-500.0,0.00035342,19]
[405990489,1771507863100,-500.0,0.00035342,19]
[405990490,1771507863109,-8217.63,0.00035342,19]
[405990491,1771507863118,-266.79596818,0.00035342,19]
[405990492,1771507863128,-500.0,0.00035342,19]
[405990493,1771507863137,-500.0,0.00035342,19]
[405990494,1771507863146,-500.0,0.00035342,19]
[405990495,1771507863217,-4293.34,0.00035342,19]
[405990496,1771507863228,-500.0,0.00035342,19]
[405990497,1771507863238,-500.0,0.00035342,19]
[405990498,1771507863248,-681.19,0.00035342,19]
[405990499,1771507863258,-500.0,0.00035342,19]
[405990500,1771507863267,-500.0,0.00035342,19]
[405990501,1771507863277,-500.0,0.00035342,19]
[405990502,1771507863286,-691.19,0.00035342,19]
[405990503,1771507863299,-500.0,0.00035342,19]
[405990504,1771507863309,-500.0,0.00035342,2]
[405990505,1771507863319,-2028.88,0.00035342,19]
[405990506,1771507863330,-1515.6,0.00035342,19]
[405990507,1771507863340,-11582.79,0.00035342,19]
[405990508,1771507863350,-3574.3,0.00035342,19]
[405990509,1771507863360,-549.95,0.00035342,19]
[405990510,1771507863370,-2541.15,0.00035342,19]
[405990511,1771507863380,-1962.15,0.00035342,19]
[405990512,1771507863390,-1167.62,0.00035342,2]
[405990513,1771507863400,-673.87,0.00035342,19]
[405990514,1771507863409,-626.37,0.00035342,19]
[405990515,1771507863419,-575.32,0.00035342,19]
[405990516,1771507863428,-500.0,0.00035342,19]
[405990517,1771507863438,-500.0,0.00035342,2]
[405990518,1771507863448,-50366.48,0.00035342,19]
[405990519,1771507863458,-490.82,0.000354,30]
[405990520,1771507863467,-1013.59,0.000354,120]
[405990521,1771507863477,-2222.40712829,0.00035516,2]
[405990522,1771507863487,-1000.0,0.00035567,30]
[405990523,1771507863496,-521.67018461,0.00035603,2]
[405990524,1771507863505,-151.0,0.00035616,19]
[405990525,1771507863514,-500.0,0.00035616,19]
[405990526,1771507863524,-500.0,0.00035616,19]
[405990527,1771507863533,-500.0,0.00035616,19]
[405990528,1771507863546,-500.0,0.00035616,7]
[405990529,1771507863556,-542.43,0.00035616,19]
[405990530,1771507863566,-500.0,0.00035616,19]
[405990531,1771507863578,-500.0,0.00035616,19]
[405990532,1771507863587,-358.66428327,0.00035616,8]
[405990533,1771507863597,-500.0,0.00035616,19]
[405990534,1771507863608,-500.0,0.00035616,19]
[405990535,1771507863617,-500.0,0.00035616,19]
[405990536,1771507863626,-500.0,0.00035616,19]
[405990537,1771507863636,-1533.22,0.00035616,19]
[405990538,1771507863645,-500.0,0.00035616,19]
[405990539,1771507863656,-3997.29,0.00035616,19]
[405990540,1771507863666,-500.0,0.00035616,19]
[405990541,1771507863675,-599.06,0.00035616,19]
[405990542,1771507863688,-519.9,0.00035616,19]
[405990543,1771507863710,-558.69,0.00035616,19]
[405990544,1771507863726,-500.0,0.00035616,19]
[405990545,1771507863746,-599.81,0.00035616,19]
[405990546,1771507863766,-508.39814462,0.00035616,19]
[405990547,1771507863785,-500.0,0.00035616,19]
[405990548,1771507863804,-1496.35,0.00035616,19]
[405990549,1771507863823,-4151.89,0.00035616,7]
[405990550,1771507863836,-852.41,0.00035616,19]
[405990551,1771507863853,-680.68,0.00035616,19]
[405990552,1771507863872,-637.44,0.00035616,19]
[405990553,1771507863892,-500.0,0.00035616,19]
[405990554,1771507863904,-3623.21,0.00035616,19]
[405990555,1771507863924,-516.82185077,0.00035616,19]
[405990556,1771507863939,-680.95,0.00035616,19]
[405990557,1771507863955,-1050.37,0.00035616,19]
[405990558,1771507863969,-1403.29,0.00035616,19]
[405990559,1771507863984,-1552.9,0.00035616,19]
[405990560,1771507863998,-500.0,0.00035616,19]
[405990561,1771507864013,-1850.23,0.00035616,19]
[405990562,1771507864029,-500.0,0.00035616,19]
[405990563,1771507864045,-500.0,0.00035616,19]
[405990564,1771507864060,-500.0,0.00035616,19]
[405990565,1771507864074,-8217.63,0.00035616,19]
[405990566,1771507864089,-500.0,0.00035616,19]
[405990567,1771507864103,-500.0,0.00035616,19]
[405990568,1771507864117,-500.0,0.00035616,19]
[405990569,1771507864131,-4293.34,0.00035616,19]
[405990570,1771507864145,-500.0,0.00035616,19]
[405990571,1771507864161,-2001.2,0.00035616,120]
[405990572,1771507864174,-500.0,0.00035616,19]
[405990573,1771507864188,-681.19,0.00035616,19]
[405990574,1771507864203,-604.39253763,0.00035616,19]
[405990575,1771507864217,-500.0,0.00035616,19]
[405990576,1771507864233,-500.0,0.00035616,19]
[405990577,1771507864247,-691.19,0.00035616,19]
[405990578,1771507864262,-500.0,0.00035616,19]
[405990579,1771507864277,-240.98301176,0.00035616,2]
[405990580,1771507864290,-2028.88,0.00035616,19]
[405990581,1771507864306,-1515.6,0.00035616,19]
[405990582,1771507864321,-11582.79,0.00035616,19]
[405990583,1771507864335,-3574.3,0.00035616,19]
[405990584,1771507864349,-549.95,0.00035616,19]
[405990585,1771507864363,-2541.15,0.00035616,19]
[405990586,1771507864377,-1962.15,0.00035616,19]
[405990587,1771507864391,-1167.62,0.00035616,2]
[405990588,1771507864405,-673.87,0.00035616,19]
[405990589,1771507864418,-626.37,0.00035616,19]
[405990590,1771507864520,-575.32,0.00035616,19]
[405990591,1771507864535,-500.0,0.00035616,19]
[405990592,1771507864547,-500.0,0.00035616,2]
[405990593,1771507864557,-50366.48,0.00035616,19]
[405990594,1771507864567,-151.0,0.00035616,31]
[405990595,1771507864581,-151.0,0.00035616,31]
[405990596,1771507864590,-151.0,0.00035616,31]
[405990597,1771507864599,-151.0,0.00035616,31]
[405990598,1771507864608,-151.0,0.00035616,31]
[405990599,1771507864619,-151.0,0.00035616,31]
[405990600,1771507864628,-158.621314,0.00035616,31]
[405990601,1771507864637,-341.11360395,0.00035616,2]
[405990602,1771507864647,-571.26350527,0.0003589,19]
[405990603,1771507864658,-506.1079435,0.0003589,19]
[405990604,1771507864667,-500.0,0.0003589,19]
[405990605,1771507864676,-170.76928616,0.0003589,7]
[405990606,1771507864685,-542.43,0.0003589,19]
[405990607,1771507864694,-500.0,0.0003589,19]
[405990608,1771507864703,-500.0,0.0003589,19]
[405990609,1771507864712,-500.0,0.0003589,19]
[405990610,1771507864722,-500.0,0.0003589,19]
[405990611,1771507864732,-500.0,0.0003589,19]
[405990612,1771507864742,-500.0,0.0003589,19]
[405990613,1771507864751,-1533.22,0.0003589,19]
[405990614,1771507864760,-500.0,0.0003589,19]
[405990615,1771507864769,-3997.29,0.0003589,19]
[405990616,1771507864778,-500.0,0.0003589,19]
[405990617,1771507864789,-599.06,0.0003589,19]
[405990618,1771507864803,-519.9,0.0003589,19]
[405990619,1771507864813,-558.69,0.0003589,19]
[405990620,1771507864822,-500.0,0.0003589,19]
[405990621,1771507864831,-599.81,0.0003589,19]
[405990622,1771507864840,-500.0,0.0003589,19]
[405990623,1771507864849,-1496.35,0.0003589,19]
[405990624,1771507864858,-4151.89,0.0003589,7]
[405990625,1771507864867,-852.41,0.0003589,19]
[405990626,1771507864877,-680.68,0.0003589,19]
[405990627,1771507864887,-637.44,0.0003589,19]
[405990628,1771507864896,-500.0,0.0003589,19]
[405990629,1771507864906,-3623.21,0.0003589,19]
[405990630,1771507864916,-680.95,0.0003589,19]
[405990631,1771507864925,-1050.37,0.0003589,19]
[405990632,1771507864934,-1403.29,0.0003589,19]
[405990633,1771507864944,-1552.9,0.0003589,19]
[405990634,1771507864954,-500.0,0.0003589,19]
[405990635,1771507864963,-1850.23,0.0003589,19]
[405990636,1771507864972,-500.0,0.0003589,19]
[405990637,1771507864981,-500.0,0.0003589,19]
[405990638,1771507864990,-500.0,0.0003589,19]
[405990639,1771507865001,-8217.63,0.0003589,19]
[405990640,1771507865011,-500.0,0.0003589,19]
[405990641,1771507865019,-500.0,0.0003589,19]
[405990642,1771507865029,-500.0,0.0003589,19]
[405990643,1771507865040,-4293.34,0.0003589,19]
[405990644,1771507865053,-500.0,0.0003589,19]
[405990645,1771507865063,-500.0,0.0003589,19]
[405990646,1771507865072,-681.19,0.0003589,19]
[405990647,1771507865081,-500.0,0.0003589,19]
[405990648,1771507865090,-500.0,0.0003589,19]
[405990649,1771507865100,-691.19,0.0003589,19]
[405990650,1771507865109,-500.0,0.0003589,19]
[405990651,1771507865119,-2028.88,0.0003589,19]
[405990652,1771507865129,-1515.6,0.0003589,19]
[405990653,1771507865139,-11582.79,0.0003589,19]
[405990654,1771507865147,-3574.3,0.0003589,19]
[405990655,1771507865156,-549.95,0.0003589,19]
[405990656,1771507865165,-2541.15,0.0003589,19]
[405990657,1771507865174,-1962.15,0.0003589,19]
[405990658,1771507865183,-1167.62,0.0003589,2]
[405990659,1771507865193,-673.87,0.0003589,19]
[405990660,1771507865202,-626.37,0.0003589,19]
[405990661,1771507865212,-575.32,0.0003589,19]
[405990662,1771507865221,-500.0,0.0003589,19]
[405990663,1771507865231,-521.07738862,0.0003589,2]
[405990664,1771507865241,-50366.48,0.0003589,19]
[405990665,1771507865250,-600.0,0.00036,120]
[405990666,1771507865259,-40525.31913038,0.00036,120]
[405990667,1771507865268,-500.0,0.00036,120]
[405990668,1771507865278,-300.0,0.00036,120]
[405990669,1771507865287,-17035.59076461,0.000361,5]
[405990670,1771507865299,-151.40768538,0.00036137,2]
[405990671,1771507865307,-500.0,0.00036164,19]
[405990672,1771507865316,-542.43,0.00036164,19]
[405990673,1771507865325,-500.0,0.00036164,19]
[405990674,1771507865335,-500.0,0.00036164,19]
[405990675,1771507865344,-348.87743385,0.00036164,19]
[405990676,1771507865353,-500.0,0.00036164,19]
[405990677,1771507865363,-500.0,0.00036164,19]
[405990678,1771507865372,-500.0,0.00036164,19]
[405990679,1771507865382,-1533.22,0.00036164,19]
[405990680,1771507865391,-500.0,0.00036164,19]
[405990681,1771507865401,-3997.29,0.00036164,19]
[405990682,1771507865410,-500.0,0.00036164,19]
[405990683,1771507865420,-599.06,0.00036164,19]
[405990684,1771507865429,-519.9,0.00036164,19]
[405990685,1771507865439,-558.69,0.00036164,19]
[405990686,1771507865448,-500.0,0.00036164,19]
[405990687,1771507865458,-599.81,0.00036164,19]
[405990688,1771507865467,-500.0,0.00036164,19]
[405990689,1771507865478,-1496.35,0.00036164,19]
[405990690,1771507865488,-4151.89,0.00036164,7]
[405990691,1771507865497,-852.41,0.00036164,19]
[405990692,1771507865506,-680.68,0.00036164,19]
[405990693,1771507865516,-637.44,0.00036164,19]
[405990694,1771507865525,-500.0,0.00036164,19]
[405990695,1771507865535,-3623.21,0.00036164,19]
[405990696,1771507865546,-680.95,0.00036164,19]
[405990697,1771507865555,-1050.37,0.00036164,19]
[405990698,1771507865565,-1403.29,0.00036164,19]
[405990699,1771507865578,-1552.9,0.00036164,19]
[405990700,1771507865587,-500.0,0.00036164,19]
[405990701,1771507865597,-1850.23,0.00036164,19]
[405990702,1771507865607,-500.0,0.00036164,19]
[405990703,1771507865618,-500.0,0.00036164,19]
[405990704,1771507865628,-500.0,0.00036164,19]
[405990705,1771507865637,-8217.63,0.00036164,19]
[405990706,1771507865647,-500.0,0.00036164,19]
[405990707,1771507865657,-500.0,0.00036164,19]
[405990708,1771507865666,-365.56993468,0.00036164,19]
[405990709,1771507865675,-4293.34,0.00036164,19]
[405990710,1771507865686,-500.0,0.00036164,19]
[405990711,1771507865697,-500.0,0.00036164,19]
[405990712,1771507865707,-681.19,0.00036164,19]
[405990713,1771507865718,-229.26258339,0.00036164,19]
[405990714,1771507865728,-527.09974721,0.00036164,19]
[405990715,1771507865738,-691.19,0.00036164,19]
[405990716,1771507865749,-500.0,0.00036164,19]
[405990717,1771507865758,-2028.88,0.00036164,19]
[405990718,1771507865767,-1515.6,0.00036164,19]
[405990719,1771507865778,-11582.79,0.00036164,19]
[405990720,1771507865787,-3574.3,0.00036164,19]
[405990721,1771507865799,-549.95,0.00036164,19]
[405990722,1771507865808,-2541.15,0.00036164,19]
[405990723,1771507865817,-1962.15,0.00036164,19]
[405990724,1771507865826,-1167.62,0.00036164,2]
[405990725,1771507865835,-673.87,0.00036164,19]
[405990726,1771507865844,-626.37,0.00036164,19]
[405990727,1771507865854,-575.32,0.00036164,19]
[405990728,1771507865863,-500.0,0.00036164,19]
[405990729,1771507865873,-50366.48,0.00036164,19]
[405990730,1771507865882,-205.99949288,0.0003621,2]
[405990731,1771507865891,-267.93089412,0.0003624,2]
[405990732,1771507865900,-1013.59,0.000363,120]
[405990733,1771507865909,-500.0,0.00036438,19]
[405990734,1771507865918,-542.43,0.00036438,19]
[405990735,1771507865927,-500.0,0.00036438,19]
[405990736,1771507865936,-500.0,0.00036438,19]
[405990737,1771507865946,-503.59011474,0.00036438,19]
[405990738,1771507865955,-500.0,0.00036438,19]
[405990739,1771507865964,-500.0,0.00036438,19]
[405990740,1771507866043,-1533.22,0.00036438,19]
[405990741,1771507866055,-500.0,0.00036438,19]
[405990742,1771507866064,-3997.29,0.00036438,19]
[405990743,1771507866073,-500.0,0.00036438,19]
[405990744,1771507866082,-599.06,0.00036438,19]
[405990745,1771507866091,-519.9,0.00036438,19]
[405990746,1771507866101,-558.69,0.00036438,19]
[405990747,1771507866110,-500.0,0.00036438,19]
[405990748,1771507866119,-599.81,0.00036438,19]
[405990749,1771507866128,-500.0,0.00036438,19]
[405990750,1771507866138,-1496.35,0.00036438,19]
[405990751,1771507866147,-4151.89,0.00036438,7]
[405990752,1771507866156,-852.41,0.00036438,19]
[405990753,1771507866166,-680.68,0.00036438,19]
[405990754,1771507866175,-637.44,0.00036438,19]
[405990755,1771507866184,-500.0,0.00036438,19]
[405990756,1771507866194,-3623.21,0.00036438,19]
[405990757,1771507866203,-680.95,0.00036438,19]
[405990758,1771507866212,-1050.37,0.00036438,19]
[405990759,1771507866222,-1403.29,0.00036438,19]
[405990760,1771507866230,-1552.9,0.00036438,19]
[405990761,1771507866239,-500.0,0.00036438,19]
[405990762,1771507866248,-1850.23,0.00036438,19]
[405990763,1771507866257,-500.0,0.00036438,19]
[405990764,1771507866266,-500.0,0.00036438,19]
[405990765,1771507866275,-500.0,0.00036438,19]
[405990766,1771507866284,-8217.63,0.00036438,19]
[405990767,1771507866294,-500.0,0.00036438,19]
[405990768,1771507866305,-500.0,0.00036438,19]
[405990769,1771507866314,-4293.34,0.00036438,19]
[405990770,1771507866324,-500.0,0.00036438,19]
[405990771,1771507866333,-500.0,0.00036438,19]
[405990772,1771507866342,-681.19,0.00036438,19]
[405990773,1771507866352,-691.19,0.00036438,19]
[405990774,1771507866361,-500.0,0.00036438,19]
[405990775,1771507866370,-2028.88,0.00036438,19]
[405990776,1771507866380,-1515.6,0.00036438,19]
[405990777,1771507866389,-11582.79,0.00036438,19]
[405990778,1771507866398,-3574.3,0.00036438,19]
[405990779,1771507866407,-549.95,0.00036438,19]
[405990780,1771507866417,-2541.15,0.00036438,19]
[405990781,1771507866426,-1962.15,0.00036438,19]
[405990782,1771507866436,-1167.62,0.00036438,2]
[405990783,1771507866445,-673.87,0.00036438,19]
[405990784,1771507866455,-626.37,0.00036438,19]
[405990785,1771507866464,-575.32,0.00036438,19]
[405990786,1771507866474,-500.0,0.00036438,19]
[405990787,1771507866483,-50366.48,0.00036438,19]
[405990788,1771507866492,-950.1378,0.000365,120]
[405990789,1771507866502,-150.82783556,0.000365,120]
[405990790,1771507866511,-2000.0,0.00036603,2]
[405990791,1771507866520,-500.0,0.00036712,19]
[405990792,1771507866529,-542.43,0.00036712,19]
[405990793,1771507866538,-500.0,0.00036712,19]
[405990794,1771507866550,-207.33792814,0.00036712,19]
[405990795,1771507866559,-500.0,0.00036712,19]
[405990796,1771507866569,-500.0,0.00036712,19]
[405990797,1771507866581,-1533.22,0.00036712,19]
[405990798,1771507866590,-500.0,0.00036712,19]
[405990799,1771507866599,-3997.29,0.00036712,19]
[405990800,1771507866608,-264.51323279,0.00036712,19]
[405990801,1771507866618,-599.06,0.00036712,19]
[405990802,1771507866627,-519.9,0.00036712,19]
[405990803,1771507866637,-558.69,0.00036712,19]
[405990804,1771507866646,-500.0,0.00036712,19]
[405990805,1771507866657,-599.81,0.00036712,19]
[405990806,1771507866666,-500.0,0.00036712,19]
[405990807,1771507866676,-1496.35,0.00036712,19]
[405990808,1771507866685,-4151.89,0.00036712,7]
[405990809,1771507866694,-852.41,0.00036712,19]
[405990810,1771507866703,-680.68,0.00036712,19]
[405990811,1771507866712,-637.44,0.00036712,19]
[405990812,1771507866722,-500.0,0.00036712,19]
[405990813,1771507866731,-3623.21,0.00036712,19]
[405990814,1771507866739,-680.95,0.00036712,19]
[405990815,1771507866749,-1050.37,0.00036712,19]
[405990816,1771507866758,-1403.29,0.00036712,19]
[405990817,1771507866767,-1552.9,0.00036712,19]
[405990818,1771507866776,-500.0,0.00036712,19]
[405990819,1771507866785,-1850.23,0.00036712,19]
[405990820,1771507866797,-500.0,0.00036712,19]
[405990821,1771507866806,-500.0,0.00036712,19]
[405990822,1771507866815,-500.0,0.00036712,19]
[405990823,1771507866824,-8217.63,0.00036712,19]
[405990824,1771507866834,-500.0,0.00036712,19]
[405990825,1771507866843,-500.0,0.00036712,19]
[405990826,1771507866852,-4293.34,0.00036712,19]
[405990827,1771507866861,-336.97426905,0.00036712,19]
[405990828,1771507866871,-500.0,0.00036712,19]
[405990829,1771507866880,-681.19,0.00036712,19]
[405990830,1771507866889,-691.19,0.00036712,19]
[405990831,1771507866899,-500.0,0.00036712,19]
[405990832,1771507866909,-2028.88,0.00036712,19]
[405990833,1771507866919,-1515.6,0.00036712,19]
[405990834,1771507866928,-11582.79,0.00036712,19]
[405990835,1771507866938,-3574.3,0.00036712,19]
[405990836,1771507866948,-549.95,0.00036712,19]
[405990837,1771507866957,-2541.15,0.00036712,19]
[405990838,1771507866966,-1962.15,0.00036712,19]
[405990839,1771507866976,-1167.62,0.00036712,2]
[405990840,1771507866985,-673.87,0.00036712,19]
[405990841,1771507866995,-626.37,0.00036712,19]
[405990842,1771507867005,-575.32,0.00036712,19]
[405990843,1771507867014,-500.0,0.00036712,19]
[405990844,1771507867024,-36953.83683066,0.00036712,19]
[405990845,1771507867436,-268.23559627,0.00017999,2]
[405990846,1771507867666,-231.76440373,0.00017999,2]
[405990847,1771507867676,-511.0,0.0003315,19]
[405990848,1771507867685,-663.08720001,0.00036712,19]
[405990855,1771507984201,-1238.51287528,0.00017818,120]
[405990866,1771508280222,313.5,3.436e-05,2]
[405990876,1771508849136,-397.82481009,0.00013005,2]
[405990877,1771508849157,-3017.07594774,0.00014687,2]
[405990878,1771508849178,-1749.86402921,0.00014835,2]
[405990879,1771508849199,-150.0,0.00015061,2]
[405990880,1771508849219,-640.0,0.00015289,2]
[405990881,1771508849240,-595.0,0.00015599,2]
[405990882,1771508849259,-218.5455714,0.0001584,2]
[405990883,1771508849278,-150.0,0.00016438,2]
[405990884,1771508849297,-176.544026,0.00016521,2]
[405990885,1771508849318,-725.83071599,0.00016787,2]
[405990886,1771508849340,-300.0,0.00016884,2]
[405990887,1771508849361,-1200.0,0.00016885,2]
[405990888,1771508849383,-172.95099325,0.00016885,2]
[405990889,1771508849403,-501.09266261,0.00016885,2]
[405990890,1771508849425,-500.0,0.00016885,2]
[405990891,1771508849447,-500.0,0.00016885,2]
[405990892,1771508849469,-500.0,0.00016885,2]
[405990893,1771508849488,-500.0,0.00016885,2]
[405990894,1771508849510,-500.0,0.00016885,2]
[405990895,1771508849530,-500.0,0.00016885,2]
[405990896,1771508849552,-500.0,0.00016885,2]
[405990897,1771508849574,-500.0,0.00016885,2]
[405990898,1771508849598,-500.0,0.00016885,2]
[405990899,1771508849621,-500.0,0.00016885,2]
[405990900,1771508849642,-500.0,0.00016885,2]
[405990901,1771508849662,-500.0,0.00016885,2]
[405990902,1771508849684,-500.0,0.00016885,2]
[405990903,1771508849707,-500.0,0.00016885,2]
[405990904,1771508849733,-500.0,0.00016885,2]
[405990905,1771508849753,-500.0,0.00016885,2]
[405990906,1771508849775,-500.0,0.00016885,2]
[405990907,1771508849798,-500.0,0.00016885,2]
[405990908,1771508849820,-500.0,0.00016885,2]
[405990909,1771508849843,-500.0,0.00016885,2]
[405990910,1771508849871,-500.0,0.00016885,2]
[405990911,1771508849894,-500.0,0.00016885,2]
[405990912,1771508849915,-500.0,0.00016885,2]
[405990913,1771508849937,-500.0,0.00016885,2]
[405990914,1771508849959,-500.0,0.00016885,2]
[405990915,1771508849981,-500.0,0.00016885,2]
[405990916,1771508850004,-500.0,0.00016885,2]
[405990917,1771508850025,-500.0,0.00016885,2]
[405990918,1771508850046,-500.0,0.00016885,2]
[405990919,1771508850066,-500.0,0.00016885,2]
[405990920,1771508850089,-500.0,0.00016885,2]
[405990921,1771508850113,-500.0,0.00016885,2]
[405990922,1771508850136,-500.0,0.00016885,2]
[405990923,1771508850158,-500.0,0.00016885,2]
[405990924,1771508850180,-500.0,0.00016885,2]
[405990925,1771508850201,-500.0,0.00016885,2]
[405990926,1771508850224,-500.0,0.00016885,2]
[405990927,1771508850244,-500.0,0.00016885,2]
[405990928,1771508850268,-500.0,0.00016885,2]
[405990929,1771508850292,-500.0,0.00016885,2]
[405990930,1771508850313,-500.0,0.00016885,2]
[405990931,1771508850335,-500.0,0.00016885,2]
[405990932,1771508850357,-500.0,0.00016885,2]
[405990933,1771508850382,-500.0,0.00016885,2]
[405990934,1771508850404,-418.70874747,0.00016885,2]
[405990935,1771508850425,-258.83562606,0.00016885,2]
[405990936,1771508850448,-500.0,0.00016885,2]
[405990937,1771508850470,-500.0,0.00016885,2]
[405990938,1771508850492,-500.0,0.00016885,2]
[405990939,1771508850513,-500.0,0.00016885,2]
[405990940,1771508850538,-500.0,0.00016885,2]
[405990941,1771508850561,-500.0,0.00016885,2]
[405990942,1771508850582,-500.0,0.00016885,2]
[405990943,1771508850603,-500.0,0.00016885,2]
[405990944,1771508850628,-500.0,0.00016885,2]
[405990945,1771508850651,-500.0,0.00016885,2]
[405990946,1771508850673,-500.0,0.00016885,2]
[405990947,1771508850693,-500.0,0.00016885,2]
[405990948,1771508850719,-500.0,0.00016885,2]
[405990949,1771508850833,-500.0,0.00016885,2]
[405990950,1771508850856,-500.0,0.00016885,2]
[405990951,1771508850879,-500.0,0.00016885,2]
[405990952,1771508850899,-389.14309391,0.00016885,2]
[405990953,1771508850921,-235.50217332,0.00016885,2]
[405990954,1771508850947,-500.0,0.00016885,2]
[405990955,1771508850969,-500.0,0.00016885,2]
[405990956,1771508850989,-500.0,0.00016885,2]
[405990957,1771508851010,-500.0,0.00016885,2]
[405990958,1771508851030,-500.0,0.00016885,2]